fUSD/lending_fUSD_20250716
["ID","MTS","AMOUNT","RATE_DAILY","PERIOD"]
[372531480,1752673860292,-360.016843,0.00021918,7]
[372531481,1752673860302,-360.016843,0.00021918,7]
[372531482,1752673860313,-151.0,0.00021918,7]
[372531483,1752673860323,-182.237555,0.00021918,7]
[372531484,1752673860333,-182.237555,0.00021918,7]
[372531485,1752673860344,-473.136089,0.00021918,7]
[372531486,1752673860354,-473.136089,0.00021918,7]
[372531487,1752673860364,-3444.41,0.00021921,2]
[372531488,1752673860374,-150.0,0.00021923,2]
[372531489,1752673860385,-150.0,0.00021923,2]
[372531490,1752673860396,-433.236791,0.00021926,2]
[372531491,1752673860406,-150.0,0.00021929,2]
[372531492,1752673860416,-85672.81204121,0.00021929,2]
[372531493,1752673860426,-150.0,0.00021939,2]
[372531494,1752673860436,-1000.0,0.00021943,2]
[372531495,1752673860446,-200.0,0.00021946,2]
[372531496,1752673860456,-216.0,0.00021949,2]
[372531497,1752673860466,-150.0,0.00021951,2]
[372531498,1752673860476,-150.0,0.00021953,2]
[372531499,1752673860486,-150.0,0.00021954,2]
[372531500,1752673860496,-150.0,0.00021962,2]
[372531501,1752673860506,-150.0,0.00021963,2]
[372531502,1752673860516,-1675.84725157,0.00021969,2]
[372531503,1752673860526,-500.0,0.00021972,2]
[372531504,1752673860544,-40343.42193622,0.0002198,2]
[372531505,1752673860557,-151.0,0.0002198,7]
[372531506,1752673860568,-151.0,0.0002198,7]
[372531507,1752673860579,-151.526865,0.0002198,7]
[372531508,1752673860589,-151.735375,0.0002198,7]
[372531509,1752673860600,-151.0,0.0002198,7]
[372531510,1752673860611,-151.0,0.0002198,7]
[372531511,1752673860622,-151.0,0.0002198,7]
[372531512,1752673860635,-150.0,0.0002198,2]
[372531513,1752673860646,-336.895774,0.0002198,7]
[372531514,1752673860657,-336.895773,0.0002198,7]
[372531515,1752673860667,-160.86066,0.0002198,7]
[372531516,1752673860678,-160.860663,0.0002198,7]
[372531517,1752673860688,-321.6562496,0.00021986,10]
[372531518,1752673860699,-164.47001437,0.00021986,10]
[372531519,1752673860709,-168.0,0.00021994,2]
[372531520,1752673860720,-150.0,0.00021996,2]
[372531521,1752673860731,-1351.33,0.00021998,2]
[372531522,1752673860741,-8447.27287146,0.00021999,2]
[372531523,1752673860751,-305.70572082,0.00021999,2]
[372531524,1752673860762,-225.89660941,0.00021999,2]
[372531525,1752673860772,-500.0,0.00021999,2]
[372531526,1752673860783,-500.0,0.00021999,2]
[372531527,1752673860793,-500.0,0.00021999,2]
[372531528,1752673860803,-1651.78,0.00021999,2]
[372531529,1752673860814,-500.0,0.00021999,2]
[372531530,1752673860824,-220.86569,0.00021999,7]
[372531531,1752673860835,-775.58,0.00021999,2]
[372531532,1752673860846,-1004.8624,0.00021999,2]
[372531533,1752673860857,-360.016843,0.00021999,7]
[372531534,1752673860867,-360.016852,0.00021999,7]
[372531535,1752673860878,-500.0,0.00021999,2]
[372531536,1752673860888,-500.0,0.00021999,2]
[372531537,1752673860901,-182.237555,0.00021999,7]
[372531538,1752673860911,-182.237555,0.00021999,7]
[372531539,1752673860921,-473.136089,0.00021999,7]
[372531540,1752673860932,-473.13608,0.00021999,7]
[372531541,1752673860942,-1351.33,0.00021999,2]
[372531542,1752673860952,-150.0,0.00021999,2]
[372531543,1752673860962,-1497.0549457,0.00022,3]
[372531544,1752673860974,-2703.72212013,0.00022,2]
[372531545,1752673860989,-197249.58298687,0.00022,2]
[372531546,1752673861000,-150.0,0.00022,2]
[372531547,1752673861011,-3000.0,0.00022,2]
[372531548,1752673861021,-3000.0,0.00022,2]
[372531549,1752673861032,-3000.0,0.00022,2]
[372531550,1752673861042,-2508.25,0.00022,2]
[372531551,1752673861053,-13107.98,0.00022,7]
[372531552,1752673861063,-8856.61,0.00022,8]
[372531553,1752673861074,-151.0,0.00022,7]
[372531554,1752673861085,-151.0,0.00022,7]
[372531555,1752673861095,-151.573835,0.00022,7]
[372531556,1752673861106,-151.0,0.00022,7]
[372531557,1752673861116,-151.0,0.00022,7]
[372531558,1752673861127,-151.0,0.00022,7]
[372531559,1752673861138,-153.593024,0.00022,7]
[372531560,1752673861150,-151.0,0.00022,7]
[372531561,1752673861161,-151.0,0.00022,7]
[372531562,1752673861172,-151.0,0.00022,7]
[372531563,1752673861183,-1310.15235594,0.00022,14]
[372531564,1752673861193,-152.894943,0.00022,7]
[372531565,1752673861204,-3000.0,0.00022,2]
[372531566,1752673861214,-151.0,0.00022,7]
[372531567,1752673861225,-151.0,0.00022,7]
[372531568,1752673861235,-151.0,0.00022,7]
[372531569,1752673861246,-151.0,0.00022,7]
[372531570,1752673861256,-151.0,0.00022,7]
[372531571,1752673861267,-151.0,0.00022,7]
[372531572,1752673861278,-151.0,0.00022,7]
[372531573,1752673861288,-156.763513,0.00022,7]
[372531574,1752673861298,-151.0,0.00022,7]
[372531575,1752673861309,-151.0,0.00022,7]
[372531576,1752673861319,-151.0,0.00022,7]
[372531577,1752673861330,-252.052004,0.00022,7]
[372531578,1752673861341,-151.0,0.00022,7]
[372531579,1752673861351,-153.590021,0.00022,7]
[372531580,1752673861362,-3383.7776,0.00022,2]
[372531581,1752673861372,-151.0,0.00022,7]
[372531582,1752673861382,-151.0,0.00022,7]
[372531583,1752673861396,-151.0,0.00022,7]
[372531584,1752673861407,-151.0,0.00022,7]
[372531585,1752673861422,-151.0,0.00022,7]
[372531586,1752673861433,-151.0,0.00022,7]
[372531587,1752673861443,-151.0,0.00022,7]
[372531588,1752673861454,-151.0,0.00022,7]
[372531589,1752673861465,-271.693365,0.00022,7]
[372531590,1752673861475,-271.693365,0.00022,7]
[372531591,1752673861486,-165.619159,0.00022,7]
[372531592,1752673861496,-165.619159,0.00022,7]
[372531593,1752673861507,-151.0,0.00022,7]
[372531594,1752673861518,-194.264131,0.00022,7]
[372531595,1752673861529,-306.762997,0.00022,7]
[372531596,1752673861539,-306.763003,0.00022,7]
[372531597,1752673861550,-151.0,0.00022,7]
[372531598,1752673861564,-154.56974,0.00022,7]
[372531599,1752673861575,-154.569748,0.00022,7]
[372531600,1752673861586,-570.23,0.00022,2]
[372531601,1752673861596,-1000.0,0.00022,2]
[372531602,1752673861606,-1000.0,0.00022,2]
[372531603,1752673861617,-1000.0,0.00022,2]
[372531604,1752673861627,-1000.0,0.00022,2]
[372531605,1752673861643,-280.351422,0.00022,7]
[372531606,1752673861654,-600.0,0.00022,2]
[372531607,1752673861664,-280.351421,0.00022,7]
[372531608,1752673861675,-384.376214,0.00022,7]
[372531609,1752673861686,-384.376206,0.00022,7]
[372531610,1752673861700,-151.0,0.00022,7]
[372531611,1752673861713,-838.7287696,0.00022,7]
[372531612,1752673861725,-2422.75555,0.00022,2]
[372531613,1752673861735,-150.0,0.00022,2]
[372531614,1752673861746,-536368.0,0.00022,2]
[372531615,1752673861756,-470.0,0.00022,2]
[372531616,1752673861766,-548.0,0.00022,2]
[372531617,1752673861776,-476.61752775,0.00022,7]
[372531618,1752673861787,-150.0,0.00022001,2]
[372531619,1752673861797,-150.0,0.00022002,2]
[372531620,1752673861808,-216.0,0.00022008,2]
[372531621,1752673861818,-327.9233043,0.00022011,2]
[372531622,1752673861829,-216.0,0.00022015,2]
[372531623,1752673861839,-150.0,0.00022018,2]
[372531624,1752673861849,-153.6060871,0.0002202,2]
[372531625,1752673861859,-150.0,0.00022021,2]
[372531626,1752673861870,-150.0,0.00022022,2]
[372531627,1752673861880,-150.0,0.00022022,2]
[372531628,1752673861890,-150.0,0.00022027,2]
[372531629,1752673861900,-31277.0,0.00022027,2]
[372531630,1752673861910,-150.0,0.00022028,2]
[372531631,1752673861920,-150.0,0.00022028,2]
[372531632,1752673861931,-150.0,0.00022033,2]
[372531633,1752673861942,-944.35886642,0.00022033,2]
[372531634,1752673861952,-150.0,0.00022037,2]
[372531635,1752673861962,-9250.78500688,0.00022038,2]
[372531636,1752673861972,-500.0,0.00022039,2]
[372531637,1752673861983,-500.0,0.00022039,2]
[372531638,1752673861992,-1000.0,0.00022039,2]
[372531639,1752673862003,-150.0,0.00022039,2]
[372531640,1752673862014,-150.0,0.00022043,2]
[372531641,1752673862024,-150.0,0.00022043,2]
[372531642,1752673862035,-399.2906753,0.00022044,2]
[372531643,1752673862548,-150.0,0.00022044,2]
[372531644,1752673862561,-4443.8568073,0.00022045,2]
[372531645,1752673862571,-150.0,0.00022046,2]
[372531646,1752673862580,-150.0,0.00022046,2]
[372531647,1752673862590,-151.0,0.00022051,7]
[372531648,1752673862600,-150.0,0.00022051,2]
[372531649,1752673862610,-231.988649,0.00022052,7]
[372531650,1752673862620,-151.0,0.00022052,7]
[372531651,1752673862631,-500.0,0.00022053,2]
[372531652,1752673862647,-165.619159,0.00022053,7]
[372531653,1752673862657,-165.619157,0.00022053,7]
[372531654,1752673862667,-500.0,0.00022053,2]
[372531655,1752673862678,-500.0,0.00022053,2]
[372531656,1752673862688,-500.0,0.00022053,2]
[372531657,1752673862698,-500.0,0.00022053,2]
[372531658,1752673862708,-500.0,0.00022053,2]
[372531659,1752673862719,-626.99,0.00022053,2]
[372531660,1752673862730,-500.0,0.00022053,2]
[372531661,1752673862740,-500.0,0.00022053,2]
[372531662,1752673862750,-500.0,0.00022053,2]
[372531663,1752673862759,-500.0,0.00022053,2]
[372531664,1752673862769,-1651.78,0.00022053,2]
[372531665,1752673862778,-1651.78,0.00022053,2]
[372531666,1752673862788,-1651.78,0.00022053,2]
[372531667,1752673862797,-500.0,0.00022053,2]
[372531668,1752673862807,-775.58,0.00022053,2]
[372531669,1752673862817,-775.58,0.00022053,2]
[372531670,1752673862827,-775.58,0.00022053,2]
[372531671,1752673862836,-775.58,0.00022053,2]
[372531672,1752673862846,-500.0,0.00022053,2]
[372531673,1752673862856,-500.0,0.00022053,2]
[372531674,1752673862866,-500.0,0.00022053,2]
[372531675,1752673862875,-500.0,0.00022053,2]
[372531676,1752673862887,-500.0,0.00022053,2]
[372531677,1752673862902,-265.4330037,0.00022053,2]
[372531678,1752673862912,-1351.33,0.00022053,2]
[372531679,1752673862922,-1351.33,0.00022053,2]
[372531680,1752673862932,-1351.33,0.00022053,2]
[372531681,1752673862942,-1351.33,0.00022053,2]
[372531682,1752673862953,-150.0,0.00022053,2]
[372531683,1752673862963,-150.0,0.00022053,2]
[372531684,1752673862973,-1180.396213,0.00022054,2]
[372531685,1752673862984,-1205.963155,0.00022054,2]
[372531686,1752673862994,-1218.575254,0.00022054,2]
[372531687,1752673863004,-157.081508,0.00022054,2]
[372531688,1752673863015,-151.0,0.00022054,7]
[372531689,1752673863025,-154.258196,0.00022054,7]
[372531690,1752673863035,-151.0,0.00022054,7]
[372531691,1752673863045,-151.0,0.00022054,7]
[372531692,1752673863056,-285.816582,0.00022054,7]
[372531693,1752673863066,-152.516922,0.00022054,7]
[372531694,1752673863077,-151.0,0.00022054,7]
[372531695,1752673863087,-151.0,0.00022054,7]
[372531696,1752673863097,-151.0,0.00022054,7]
[372531697,1752673863108,-151.0,0.00022054,7]
[372531698,1752673863118,-154.871895,0.00022054,7]
[372531699,1752673863129,-151.0,0.00022054,7]
[372531700,1752673863139,-151.0,0.00022054,7]
[372531701,1752673863151,-151.0,0.00022054,7]
[372531702,1752673863162,-151.0,0.00022054,7]
[372531703,1752673863173,-151.0,0.00022054,7]
[372531704,1752673863183,-151.0,0.00022054,7]
[372531705,1752673863194,-151.0,0.00022054,7]
[372531706,1752673863204,-151.0,0.00022054,7]
[372531707,1752673863215,-151.0,0.00022054,7]
[372531708,1752673863226,-151.0,0.00022054,7]
[372531709,1752673863237,-151.0,0.00022054,7]
[372531710,1752673863247,-151.0,0.00022054,7]
[372531711,1752673863258,-151.0,0.00022054,7]
[372531712,1752673863268,-211.016314,0.00022054,7]
[372531713,1752673863279,-151.0,0.00022054,7]
[372531714,1752673863290,-151.0,0.00022054,7]
[372531715,1752673863301,-151.0,0.00022054,7]
[372531716,1752673863311,-151.0,0.00022054,7]
[372531717,1752673863322,-151.0,0.00022054,7]
[372531718,1752673863332,-151.0,0.00022054,7]
[372531719,1752673863349,-151.0,0.00022054,7]
[372531720,1752673863360,-214.096122,0.00022054,7]
[372531721,1752673863371,-460.0,0.00022054,2]
[372531722,1752673863382,-460.0,0.00022054,2]
[372531723,1752673863394,-460.0,0.00022054,2]
[372531724,1752673863405,-460.0,0.00022054,2]
[372531725,1752673863415,-463.02209047,0.00022054,2]
[372531726,1752673863426,-936.9,0.00022054,2]
[372531727,1752673863437,-151.0,0.00022054,7]
[372531728,1752673863448,-151.0,0.00022054,7]
[372531729,1752673863459,-151.0,0.00022054,7]
[372531730,1752673863469,-151.0,0.00022054,7]
[372531731,1752673863480,-151.0,0.00022054,7]
[372531732,1752673863491,-151.0,0.00022054,7]
[372531733,1752673863501,-460.0,0.00022054,2]
[372531734,1752673863514,-460.0,0.00022054,2]
[372531735,1752673863525,-573.8,0.00022054,2]
[372531736,1752673863536,-460.0,0.00022054,2]
[372531737,1752673863547,-151.0,0.00022054,7]
[372531738,1752673863558,-151.0,0.00022054,7]
[372531739,1752673863569,-151.0,0.00022054,7]
[372531740,1752673863580,-151.0,0.00022054,7]
[372531741,1752673863591,-151.0,0.00022054,7]
[372531742,1752673863602,-221.084461,0.00022054,7]
[372531743,1752673863613,-460.0,0.00022054,2]
[372531744,1752673863625,-658.28,0.00022054,2]
[372531745,1752673863638,-151.0,0.00022054,7]
[372531746,1752673863655,-460.0,0.00022054,2]
[372531747,1752673863667,-151.0,0.00022054,7]
[372531748,1752673863679,-151.0,0.00022054,7]
[372531749,1752673863690,-151.0,0.00022054,7]
[372531750,1752673863701,-201.0,0.00022054,7]
[372531751,1752673863712,-460.0,0.00022054,2]
[372531752,1752673863724,-460.0,0.00022054,2]
[372531753,1752673863735,-607.88,0.00022054,2]
[372531754,1752673863746,-151.0,0.00022054,7]
[372531755,1752673863756,-151.0,0.00022054,7]
[372531756,1752673863767,-151.0,0.00022054,7]
[372531757,1752673863782,-460.0,0.00022054,2]
[372531758,1752673863792,-271.693365,0.00022054,7]
[372531759,1752673863804,-271.693365,0.00022054,7]
[372531760,1752673863814,-271.693365,0.00022054,7]
[372531761,1752673863825,-460.0,0.00022054,2]
[372531762,1752673863835,-271.693365,0.00022054,7]
[372531763,1752673863846,-271.693365,0.00022054,7]
[372531764,1752673863857,-271.693365,0.00022054,7]
[372531765,1752673863867,-460.0,0.00022054,2]
[372531766,1752673863878,-493.97,0.00022054,2]
[372531767,1752673863888,-489.2,0.00022054,2]
[372531768,1752673863901,-460.0,0.00022054,2]
[372531769,1752673863912,-460.0,0.00022054,2]
[372531770,1752673863923,-488.75,0.00022054,2]
[372531771,1752673863933,-460.0,0.00022054,2]
[372531772,1752673863944,-460.0,0.00022054,2]
[372531773,1752673863954,-353.4548458,0.00022054,2]
[372531774,1752673863965,-460.0,0.00022054,2]
[372531775,1752673863976,-460.0,0.00022054,2]
[372531776,1752673863987,-460.0,0.00022054,2]
[372531777,1752673863998,-460.0,0.00022054,2]
[372531778,1752673864008,-536.08,0.00022054,2]
[372531779,1752673864018,-532.28762557,0.00022054,2]
[372531780,1752673864029,-460.0,0.00022054,2]
[372531781,1752673864040,-460.0,0.00022054,2]
[372531782,1752673864051,-460.0,0.00022054,2]
[372531783,1752673864061,-460.0,0.00022054,2]
[372531784,1752673864072,-460.0,0.00022054,2]
[372531785,1752673864083,-460.0,0.00022054,2]
[372531786,1752673864094,-460.0,0.00022054,2]
[372531787,1752673864104,-460.0,0.00022054,2]
[372531788,1752673864115,-460.0,0.00022054,2]
[372531789,1752673864126,-460.0,0.00022054,2]
[372531790,1752673864136,-460.0,0.00022054,2]
[372531791,1752673864149,-460.0,0.00022054,2]
[372531792,1752673864159,-460.0,0.00022054,2]
[372531793,1752673864170,-460.0,0.00022054,2]
[372531794,1752673864180,-460.0,0.00022054,2]
[372531795,1752673864190,-460.0,0.00022054,2]
[372531796,1752673864200,-460.0,0.00022054,2]
[372531797,1752673864211,-466.49,0.00022054,2]
[372531798,1752673864232,-151.0,0.00022054,7]
[372531799,1752673864243,-151.0,0.00022054,7]
[372531800,1752673864253,-151.0,0.00022054,7]
[372531801,1752673864263,-460.0,0.00022054,2]
[372531802,1752673864274,-460.0,0.00022054,2]
[372531803,1752673864284,-460.0,0.00022054,2]
[372531804,1752673864294,-460.0,0.00022054,2]
[372531805,1752673864305,-693.71,0.00022054,2]
[372531806,1752673864315,-460.0,0.00022054,2]
[372531807,1752673864326,-460.0,0.00022054,2]
[372531808,1752673864336,-460.0,0.00022054,2]
[372531809,1752673864347,-460.0,0.00022054,2]
[372531810,1752673864357,-470.55,0.00022054,2]
[372531811,1752673864368,-460.0,0.00022054,2]
[372531812,1752673864379,-460.0,0.00022054,2]
[372531813,1752673864389,-460.0,0.00022054,2]
[372531814,1752673864401,-460.0,0.00022054,2]
[372531815,1752673864412,-460.0,0.00022054,2]
[372531816,1752673864423,-943.65,0.00022054,2]
[372531817,1752673864433,-514.02,0.00022054,2]
[372531818,1752673864443,-945.53,0.00022054,2]
[372531819,1752673864455,-460.0,0.00022054,2]
[372531820,1752673864465,-460.0,0.00022054,2]
[372531821,1752673864475,-462.37089985,0.00022054,2]
[372531822,1752673864485,-779.52,0.00022054,2]
[372531823,1752673864495,-670.73,0.00022054,2]
[372531824,1752673864506,-460.0,0.00022054,2]
[372531825,1752673864516,-460.0,0.00022054,2]
[372531826,1752673864527,-469.71168081,0.00022054,2]
[372531827,1752673864537,-460.0,0.00022054,2]
[372531828,1752673864547,-460.0,0.00022054,2]
[372531829,1752673864558,-460.0,0.00022054,2]
[372531830,1752673864568,-460.0,0.00022054,2]
[372531831,1752673864579,-460.0,0.00022054,2]
[372531832,1752673864589,-460.0,0.00022054,2]
[372531833,1752673864600,-460.0,0.00022054,2]
[372531834,1752673864610,-460.0,0.00022054,2]
[372531835,1752673864620,-460.0,0.00022054,2]
[372531836,1752673864631,-159.25872685,0.00022054,2]
[372531837,1752673864647,-460.0,0.00022054,2]
[372531838,1752673864658,-460.0,0.00022054,2]
[372531839,1752673864672,-460.0,0.00022054,2]
[372531840,1752673864685,-539.36673154,0.00022054,2]
[372531841,1752673864696,-460.0,0.00022054,2]
[372531842,1752673864708,-500.0,0.00022054,5]
[372531843,1752673864719,-460.0,0.00022054,2]
[372531844,1752673864729,-460.0,0.00022054,2]
[372531845,1752673864739,-460.0,0.00022054,2]
[372531846,1752673864749,-460.0,0.00022054,2]
[372531847,1752673864761,-460.0,0.00022054,2]
[372531848,1752673864772,-460.0,0.00022054,2]
[372531849,1752673864782,-460.0,0.00022054,2]
[372531850,1752673864792,-460.0,0.00022054,2]
[372531851,1752673864803,-460.0,0.00022054,2]
[372531852,1752673864812,-460.0,0.00022054,2]
[372531853,1752673864822,-495.12,0.00022054,2]
[372531854,1752673864832,-460.0,0.00022054,2]
[372531855,1752673864842,-460.0,0.00022054,2]
[372531856,1752673864852,-269.39750037,0.00022054,2]
[372531857,1752673864863,-460.0,0.00022054,2]
[372531858,1752673864874,-460.0,0.00022054,2]
[372531859,1752673864885,-460.0,0.00022054,2]
[372531860,1752673864897,-892.51,0.00022054,2]
[372531861,1752673864907,-460.0,0.00022054,2]
[372531862,1752673864918,-460.0,0.00022054,2]
[372531863,1752673864928,-460.0,0.00022054,2]
[372531864,1752673864943,-460.0,0.00022054,2]
[372531865,1752673864953,-460.0,0.00022054,2]
[372531866,1752673864963,-460.0,0.00022054,2]
[372531867,1752673864973,-460.0,0.00022054,2]
[372531868,1752673864983,-460.0,0.00022054,2]
[372531869,1752673864995,-460.0,0.00022054,2]
[372531870,1752673865007,-460.0,0.00022054,2]
[372531871,1752673865017,-576.52495995,0.00022054,2]
[372531872,1752673865027,-460.0,0.00022054,2]
[372531873,1752673865037,-460.0,0.00022054,2]
[372531874,1752673865048,-1046.56,0.00022054,2]
[372531875,1752673865058,-460.0,0.00022054,2]
[372531876,1752673865069,-574.5,0.00022054,2]
[372531877,1752673865080,-460.0,0.00022054,2]
[372531878,1752673865090,-460.0,0.00022054,2]
[372531879,1752673865101,-460.0,0.00022054,2]
[372531880,1752673865111,-835.78,0.00022054,2]
[372531881,1752673865121,-460.0,0.00022054,2]
[372531882,1752673865131,-460.0,0.00022054,2]
[372531883,1752673865141,-1266.29,0.00022054,2]
[372531884,1752673865151,-460.0,0.00022054,2]
[372531885,1752673865161,-500.0,0.00022054,2]
[372531886,1752673865424,-1066.46,0.00022054,2]
[372531887,1752673865435,-460.00385891,0.00022054,2]
[372531888,1752673865445,-460.0,0.00022054,2]
[372531889,1752673865455,-3704.1,0.00022054,2]
[372531890,1752673865464,-460.0,0.00022054,2]
[372531891,1752673865474,-554.58,0.00022054,2]
[372531892,1752673865483,-460.0,0.00022054,2]
[372531893,1752673865493,-500.0,0.00022054,2]
[372531894,1752673865503,-460.0,0.00022054,2]
[372531895,1752673865513,-460.0,0.00022054,2]
[372531896,1752673865522,-460.0,0.00022054,2]
[372531897,1752673865532,-537.8,0.00022054,2]
[372531898,1752673865542,-1037.13,0.00022054,2]
[372531899,1752673865551,-460.0,0.00022054,2]
[372531900,1752673865560,-460.0,0.00022054,2]
[372531901,1752673865571,-460.0,0.00022054,2]
[372531902,1752673865580,-460.0,0.00022054,2]
[372531903,1752673865590,-1596.52,0.00022054,2]
[372531904,1752673865599,-460.0,0.00022054,2]
[372531905,1752673865608,-493.08,0.00022054,2]
[372531906,1752673865618,-460.0,0.00022054,2]
[372531907,1752673865628,-460.0,0.00022054,2]
[372531908,1752673865642,-460.0,0.00022054,2]
[372531909,1752673865654,-447.690608,0.00022054,2]
[372531910,1752673865663,-460.0,0.00022054,2]
[372531911,1752673865675,-619.17,0.00022054,2]
[372531912,1752673865684,-460.0,0.00022054,2]
[372531913,1752673865694,-460.0,0.00022054,2]
[372531914,1752673865704,-460.0,0.00022054,2]
[372531915,1752673865715,-460.0,0.00022054,2]
[372531916,1752673865726,-536.16,0.00022054,2]
[372531917,1752673865735,-460.0,0.00022054,2]
[372531918,1752673865745,-460.0,0.00022054,2]
[372531919,1752673865754,-993.6,0.00022054,2]
[372531920,1752673865764,-212.50236537,0.00022054,2]
[372531921,1752673865773,-460.0,0.00022054,2]
[372531922,1752673865783,-526.82,0.00022054,2]
[372531923,1752673865792,-460.0,0.00022054,2]
[372531924,1752673865802,-1029.8,0.00022054,2]
[372531925,1752673865812,-460.0,0.00022054,2]
[372531926,1752673865821,-1063.03,0.00022054,2]
[372531927,1752673865831,-460.0,0.00022054,2]
[372531928,1752673865840,-460.0,0.00022054,2]
[372531929,1752673865850,-460.0,0.00022054,2]
[372531930,1752673865860,-667.41,0.00022054,2]
[372531931,1752673865879,-602.14,0.00022054,2]
[372531932,1752673865890,-471.64,0.00022054,2]
[372531933,1752673865904,-668.01,0.00022054,2]
[372531934,1752673865913,-477.59,0.00022054,2]
[372531935,1752673865923,-460.0,0.00022054,2]
[372531936,1752673865932,-1437.92,0.00022054,2]
[372531937,1752673865941,-460.0,0.00022054,2]
[372531938,1752673865951,-2172.86,0.00022054,2]
[372531939,1752673865961,-1451.45,0.00022054,2]
[372531940,1752673865970,-983.7,0.00022054,2]
[372531941,1752673865980,-460.0,0.00022054,2]
[372531942,1752673865990,-462.80200449,0.00022054,2]
[372531943,1752673866000,-460.0,0.00022054,2]
[372531944,1752673866009,-1310.07,0.00022054,2]
[372531945,1752673866019,-500.0,0.00022054,2]
[372531946,1752673866029,-460.0,0.00022054,2]
[372531947,1752673866038,-460.0,0.00022054,2]
[372531948,1752673866048,-460.0,0.00022054,2]
[372531949,1752673866058,-500.0,0.00022054,2]
[372531950,1752673866067,-823.43,0.00022054,2]
[372531951,1752673866083,-460.0,0.00022054,2]
[372531952,1752673866095,-460.0,0.00022054,2]
[372531953,1752673866104,-150.0,0.00022054,2]
[372531954,1752673866114,-460.0,0.00022054,2]
[372531955,1752673866125,-199.14729481,0.00022054,2]
[372531956,1752673866135,-460.0,0.00022054,2]
[372531957,1752673866144,-460.0,0.00022054,2]
[372531958,1752673866154,-500.0,0.00022054,2]
[372531959,1752673866163,-460.0,0.00022054,2]
[372531960,1752673866173,-500.0,0.00022054,2]
[372531961,1752673866182,-463.50336167,0.00022054,2]
[372531962,1752673866192,-528.38,0.00022054,2]
[372531963,1752673866203,-460.0,0.00022054,2]
[372531964,1752673866212,-526.3220976,0.00022054,2]
[372531965,1752673866222,-1002.68,0.00022054,2]
[372531966,1752673866231,-610.31,0.00022054,2]
[372531967,1752673866241,-838.44,0.00022054,2]
[372531968,1752673866251,-500.0,0.00022054,2]
[372531969,1752673866260,-259.26493611,0.00022054,2]
[372531970,1752673866270,-500.0,0.00022054,2]
[372531971,1752673866279,-462.76437137,0.00022054,2]
[372531972,1752673866288,-3030.09,0.00022054,2]
[372531973,1752673866298,-487.56,0.00022054,2]
[372531974,1752673866308,-460.0,0.00022054,2]
[372531975,1752673866318,-460.0,0.00022054,2]
[372531976,1752673866332,-460.0,0.00022054,2]
[372531977,1752673866342,-487.94,0.00022054,2]
[372531978,1752673866352,-460.0,0.00022054,2]
[372531979,1752673866362,-460.0,0.00022054,2]